lending/lending_fUSD_20260124
["ID","MTS","AMOUNT","RATE_DAILY","PERIOD"]
[403167879,1769235862352,500.0,0.00013497,2]
[403167880,1769235862404,500.0,0.00013497,2]
[403167881,1769235862445,500.0,0.00013497,2]
[403167882,1769235862486,500.0,0.00013497,2]
[403167883,1769235862524,500.0,0.00013497,2]
[403167884,1769235862563,500.0,0.00013497,2]
[403167885,1769235862601,500.0,0.00013497,2]
[403167886,1769235862648,500.0,0.00013497,2]
[403167887,1769235862694,241.76930598,0.00013497,2]
[403167888,1769235862719,258.23069402,0.00013497,2]
[403167889,1769235862762,500.0,0.00013497,2]
[403167890,1769235862803,500.0,0.00013497,2]
[403167891,1769235862843,500.0,0.00013497,2]
[403167892,1769235862884,500.0,0.00013497,2]
[403167893,1769235862923,500.0,0.00013497,2]
[403167894,1769235862962,635.77818552,0.00013497,2]
[403167895,1769235863004,500.0,0.00013497,2]
[403167896,1769235863042,500.0,0.00013497,2]
[403167897,1769235863491,500.0,0.00013497,2]
[403167898,1769235863530,500.0,0.00013497,2]
[403167899,1769235863569,500.0,0.00013497,2]
[403167900,1769235863607,500.0,0.00013497,2]
[403167901,1769235863649,500.0,0.00013497,2]
[403167902,1769235863679,-304.80074815,0.00013498,2]
[403167903,1769235863717,500.0,0.00013497,2]
[403167904,1769235863756,500.0,0.00013497,2]
[403167905,1769235863795,500.0,0.00013497,2]
[403167906,1769235863840,500.0,0.00013497,2]
[403167907,1769235863883,500.0,0.00013497,2]
[403167908,1769235863922,500.0,0.00013497,2]
[403167909,1769235863962,106.00112046,0.00013497,2]
[403167910,1769235863989,393.99887954,0.00013497,2]
[403167911,1769235864029,500.0,0.00013497,2]
[403167912,1769235864069,500.0,0.00013497,2]
[403167913,1769235864114,500.0,0.00013497,2]
[403167914,1769235864154,500.0,0.00013497,2]
[403167915,1769235864207,500.0,0.00013497,2]
[403167916,1769235864247,500.0,0.00013497,2]
[403167917,1769235864306,500.0,0.00013497,2]
[403167918,1769235864353,500.0,0.00013497,2]
[403167919,1769235864659,-223.91706543,0.00013498,2]
[403167920,1769235867475,-165.17107784,0.00013498,2]
[403167921,1769235869624,-209.20770058,0.00013498,2]
[403167922,1769235870309,500.0,0.00013497,2]
[403167923,1769235870349,500.0,0.00013497,2]
[403167924,1769235870386,500.0,0.00013497,2]
[403167925,1769235870423,500.0,0.00013497,2]
[403167926,1769235870459,500.0,0.00013497,2]
[403167927,1769235870501,500.0,0.00013497,2]
[403167928,1769235870541,500.0,0.00013497,2]
[403167929,1769235870578,500.0,0.00013497,2]
[403167930,1769235870616,500.0,0.00013497,2]
[403167931,1769235870653,500.0,0.00013497,2]
[403167932,1769235870690,500.0,0.00013497,2]
[403167933,1769235870729,106.01112046,0.00013497,2]
[403167934,1769235870753,393.98887954,0.00013497,2]
[403167935,1769235870790,500.0,0.00013497,2]
[403167936,1769235870826,500.0,0.00013497,2]
[403167937,1769235870865,500.0,0.00013497,2]
[403167938,1769235870901,500.0,0.00013497,2]
[403167939,1769235870951,500.0,0.00013497,2]
[403167940,1769235870988,500.0,0.00013497,2]
[403167941,1769235871023,500.0,0.00013497,2]
[403167942,1769235871232,500.0,0.00013497,2]
[403167943,1769235871274,500.0,0.00013497,2]
[403167944,1769235871315,500.0,0.00013497,2]
[403167945,1769235871354,500.0,0.00013497,2]
[403167946,1769235871394,500.0,0.00013497,2]
[403167947,1769235871431,500.0,0.00013497,2]
[403167948,1769235871472,500.0,0.00013497,2]
[403167949,1769235871514,500.0,0.00013497,2]
[403167950,1769235871552,500.0,0.00013497,2]
[403167951,1769235871589,500.0,0.00013497,2]
[403167952,1769235871632,500.0,0.00013497,2]
[403167953,1769235871669,500.0,0.00013497,2]
[403167954,1769235871708,106.02112046,0.00013497,2]
[403167955,1769235871734,393.97887954,0.00013497,2]
[403167956,1769235875851,-292.27244388,0.00013498,2]
[403167959,1769235877387,-249.73100501,0.00013498,2]
[403167960,1769235880077,-319.213865,0.00013498,2]
[403167961,1769235883117,-182.90599654,0.00013498,2]
[403167962,1769235883538,166.66,0.00012128,2]
[403167963,1769235883950,166.66,0.00012383,2]
[403167964,1769235884161,166.66,0.00012639,2]
[403167965,1769235884355,166.66,0.00012894,2]
[403167966,1769235884552,166.66,0.00013149,2]
[403167967,1769235884806,166.66,0.00013405,2]
[403167968,1769235885705,-171.36709239,0.00013498,2]
[403167969,1769235888454,-158.32296483,0.00013498,2]
[403167970,1769235891745,-594.55930104,0.00013498,2]
[403167971,1769235894522,-238.55936507,0.00013498,2]
[403167972,1769235897163,-161.94720577,0.00013498,2]
[403167973,1769235898692,-418.68736678,0.00013498,2]
[403167974,1769235901231,300.0,0.00013497,2]
[403167975,1769235901270,1200.0,0.00013497,2]
[403167976,1769235901484,253.0,0.00013497,2]
[403167977,1769235902171,340.07800813,0.00013497,2]
[403167978,1769235902975,306.1877,0.00013398,2]
[403167979,1769235903656,-166.16560413,0.00013498,2]
[403167980,1769235905979,-212.15196144,0.00013498,2]
[403167981,1769235908047,-179.75030881,0.00013498,2]
[403167982,1769235911560,-595.09543026,0.00013498,2]
[403167983,1769235911910,500.0,0.00013497,2]
[403167984,1769235911965,249.75395931,0.00013497,2]
[403167985,1769235912053,500.0,0.00013497,2]
[403167986,1769235915146,-202.58890261,0.00013498,2]
[403167987,1769235916714,501.63601776,0.00013497,2]
[403167988,1769235920539,-499.45100758,0.00013498,2]
[403167989,1769235922718,-218.91069413,0.00013498,2]
[403167990,1769235924827,1187.0191256,0.00013398,2]
[403167991,1769235925971,-410.44315369,0.00013498,2]
[403167992,1769235927608,-299.35701369,0.00013498,2]
[403167993,1769235929728,-300.0,0.00013498,2]
[403167994,1769235931722,-500.0,0.00013498,2]
[403167995,1769235933626,1000.0,0.00013398,2]
[403167996,1769235935148,-174.01108551,0.00013498,2]
[403167997,1769235936332,2662.3751892,0.0001,2]
[403167998,1769235936357,2610.08939867,0.0001,2]
[403167999,1769235936686,-200.95907073,0.00013498,2]
[403168000,1769235939614,-211.005736,0.00013498,2]
[403168001,1769235942222,-635.71232497,0.00013498,2]
[403168002,1769235945895,-218.24227358,0.00013498,2]
[403168003,1769235947440,-286.16054555,0.00013498,2]
[403168004,1769235950720,-189.87485552,0.00013498,2]
[403168005,1769235951720,2500.0,0.00013398,2]
[403168006,1769235952831,-267.10960323,0.00013498,2]
[403168007,1769235955098,-167.17532628,0.00013498,2]
[403168008,1769235956580,-303.0480494,0.00013498,2]
[403168009,1769235958701,-200.57604426,0.00013498,2]
[403168010,1769235960624,4889.92060133,8e-05,2]
[403168011,1769235960648,5447.56477507,8e-05,2]
[403168012,1769235961313,300.0,0.00013497,2]
[403168013,1769235961497,-233.13295432,0.00013498,2]
[403168014,1769235964762,4252.44522493,0.00011,2]
[403168015,1769235964790,5176.89689573,0.00011,2]
[403168016,1769235965872,-210.64922317,0.00013498,2]
[403168019,1769235968692,-341.44833593,0.00013498,2]
[403168020,1769235969949,-198.58429623,0.00013498,2]
[403168021,1769235973810,-187.10365935,0.00013498,2]
[403168022,1769235975868,4823.11310427,0.00013151,2]
[403168023,1769235975890,4528.01689573,0.00013151,2]
[403168024,1769235975931,-200.0,0.00013498,2]
[403168025,1769235977599,-152.90282489,0.00013498,2]
[403168026,1769235984337,-191.34917825,0.00013498,2]
[403168027,1769235986483,-249.99807935,0.00013498,2]
[403168028,1769235987998,-202.34013256,0.00013498,2]
[403168029,1769235990763,4161.15703233,0.00013398,2]
[403168030,1769235993454,-389.35788943,0.00013498,2]
[403168031,1769235995481,-523.22055326,0.00013498,2]
[403168032,1769235998144,-274.14035493,0.00013498,2]
[403168033,1769236002657,-175.68786292,0.00013498,2]
[403168034,1769236005514,-295.86608011,0.00013498,2]
[403168035,1769236008560,-155.03186656,0.00013498,2]
[403168036,1769236011854,-325.94039195,0.00013498,2]
[403168037,1769236014657,-220.54251313,0.00013498,2]
[403168038,1769236016447,-201.35302676,0.00013498,2]
[403168039,1769236017071,168.38930234,0.00013497,2]
[403168040,1769236020630,-300.0,0.00013498,2]
[403168041,1769236022129,491.53929173,0.00013497,2]
[403168042,1769236022365,150.0,0.00013497,2]
[403168043,1769236022585,300.0,0.00013497,2]
[403168044,1769236022710,-264.87733376,0.00013498,2]
[403168045,1769236024233,-175.19791443,0.00013498,2]
[403168046,1769236026545,200.90747787,0.00013498,2]
[403168047,1769236026568,121.70322213,0.00013498,2]
[403168048,1769236026609,-187.46022887,0.00013498,2]
[403168049,1769236030214,-231.78535653,0.00013498,2]
[403168050,1769236030647,205.0,9.8e-05,2]
[403168051,1769236030717,2468.0,0.00013498,2]
[403168052,1769236031053,500.0,0.00013498,2]
[403168053,1769236031265,854.2589148,0.00013498,2]
[403168054,1769236031845,500.0,0.00013498,2]
[403168055,1769236032687,3297.0226,0.00013398,2]
[403168056,1769236032740,500.0,0.00013498,2]
[403168057,1769236032826,174.61919141,0.00013498,2]
[403168058,1769236033554,-262.65880764,0.00013498,2]
[403168059,1769236033609,500.0,0.00013498,2]
[403168060,1769236033918,500.0,0.00013498,2]
[403168061,1769236034475,1524.20081934,0.0001305,2]
[403168062,1769236034538,-500.0,0.00013498,2]
[403168063,1769236034671,-3985.42719212,0.00013498,2]
[403168064,1769236034732,-10000.01,0.00013498,2]
[403168065,1769236034772,259.93843589,0.000101,2]
[403168066,1769236034822,-10000.01,0.00013498,2]
[403168067,1769236034868,-500.0,0.00013498,2]
[403168068,1769236034913,-9000.01,0.00013498,2]
[403168069,1769236034967,-10000.01,0.00013498,2]
[403168070,1769236035068,-358.97455968,0.00013498,2]
[403168071,1769236035094,-10000.01,0.00013498,2]
[403168072,1769236035189,-10000.01,0.00013498,2]
[403168073,1769236035299,-10000.01,0.00013498,2]
[403168074,1769236035398,-10000.01,0.00013498,2]
[403168075,1769236036050,539.08779413,0.000176,30]
[403168076,1769236037568,-500.0,0.00013498,2]
[403168077,1769236037600,-500.0,0.00013498,2]
[403168078,1769236037633,-500.0,0.00013498,2]
[403168079,1769236037667,-500.0,0.00013498,2]
[403168080,1769236037767,-6000.01,0.00013498,2]
[403168081,1769236039488,-293.69562351,0.00013498,2]
[403168082,1769236040728,-283.58231807,0.00013498,2]
[403168083,1769236043209,-208.68743832,0.00013498,2]
[403168084,1769236043275,800.0,0.000139,5]
[403168085,1769236046574,151.0,0.00013498,2]
[403168086,1769236046805,-410.69820114,0.00013498,2]
[403168087,1769236047438,801.48947196,0.00013498,2]
[403168088,1769236048702,674.13413978,0.00013,2]
[403168089,1769236049990,-180.63428719,0.00013498,2]
[403168090,1769236051148,151.0,0.00013498,2]
[403168091,1769236051776,151.0,0.00013498,2]
[403168092,1769236052407,151.0,0.00013498,2]
[403168093,1769236053030,151.0,0.00013498,2]
[403168094,1769236053982,151.0,0.00013498,2]
[403168095,1769236054344,151.0,0.00013498,2]
[403168096,1769236054547,-165.00301899,0.00013498,2]
[403168097,1769236054942,151.0,0.00013498,2]
[403168098,1769236055578,151.0,0.00013498,2]
[403168099,1769236056226,151.0,0.00013498,2]
[403168100,1769236056862,151.0,0.00013498,2]
[403168101,1769236057339,-430.10190951,0.00013498,2]
[403168102,1769236057487,151.0,0.00013498,2]
[403168103,1769236058664,6712.38638826,0.00013398,2]
[403168104,1769236058691,1308.82821771,0.00013398,2]
[403168105,1769236059370,8691.18178229,0.0001343,2]
[403168106,1769236059393,1008.82821771,0.0001343,2]
[403168107,1769236060119,-190.28,0.00013498,2]
[403168108,1769236063566,-327.37123182,0.00013498,2]
[403168109,1769236068124,-174.33941195,0.00013498,2]
[403168110,1769236069863,-259.33409053,0.00013498,2]
[403168111,1769236072044,-260.40167576,0.00013498,2]
[403168112,1769236075457,-1129.58360968,0.00013498,2]
[403168113,1769236078331,-374.88823049,0.00013498,2]
[403168114,1769236080001,-155.03186655,0.00013498,2]
[403168115,1769236081263,300.0,0.00013497,2]
[403168116,1769236082961,-155.66064199,0.00013498,2]
[403168117,1769236084611,-216.64293227,0.00013498,2]
[403168118,1769236088132,307.61058174,0.000125,2]
[403168119,1769236089920,-290.49994628,0.00013498,2]
[403168120,1769236091556,-344.33935801,0.00013498,2]
[403168121,1769236094342,-451.24011516,0.00013498,2]
[403168122,1769236097394,-399.30939117,0.00013498,2]
[403168123,1769236099403,-153.683692,0.00013498,2]
[403168124,1769236100707,1200.0,0.00013497,2]
[403168125,1769236101662,-159.27633665,0.00013498,2]
[403168126,1769236104331,-194.78001737,0.00013498,2]
[403168127,1769236107165,2736.91287871,0.0001,2]
[403168128,1769236107208,-240.29600961,0.00013498,2]
[403168129,1769236108483,-287.27718627,0.00013498,2]
[403168130,1769236109065,268.40264442,0.000107,2]
[403168131,1769236112527,-236.39367648,0.00013498,2]
[403168132,1769236114471,-219.9643608,0.00013498,2]
[403168133,1769236116322,4178.25567742,0.0001,2]
[403168134,1769236116346,7861.03432617,0.0001,2]
[403168135,1769236117726,-473.10450358,0.00013498,2]
[403168136,1769236119770,-235.34687346,0.00013498,2]
[403168137,1769236122383,-310.54156861,0.00013498,2]
[403168138,1769236125546,423.28093144,0.00013398,2]
[403168139,1769236126026,-406.49236603,0.00013498,2]
[403168140,1769236129304,-192.212083,0.00013498,2]
[403168141,1769236130527,222.33,0.00013128,2]
[403168142,1769236130852,-167.29847352,0.00013498,2]
[403168143,1769236132672,1393.7793976,0.00013398,2]
[403168144,1769236133753,-325.05363435,0.00013498,2]
[403168145,1769236136993,-300.0,0.00013498,2]
[403168146,1769236140274,-200.63335751,0.00013498,2]
[403168147,1769236142847,-215.19509579,0.00013498,2]
[403168148,1769236145439,-403.16065364,0.00013498,2]
[403168149,1769236147102,99.58534479,0.00013,2]
[403168150,1769236147128,10000.01,0.00013,2]
[403168151,1769236147151,10000.01,0.00013,2]
[403168152,1769236147175,10000.01,0.00013,2]
[403168153,1769236147199,10000.01,0.00013,2]
[403168154,1769236147223,10000.01,0.00013,2]
[403168155,1769236147247,10000.01,0.00013,2]
[403168156,1769236147270,10000.01,0.00013,2]
[403168157,1769236147292,10000.01,0.00013,2]
[403168158,1769236147315,10000.01,0.00013,2]
[403168159,1769236147342,9900.32465521,0.00013,2]
[403168160,1769236148154,-210.36719805,0.00013498,2]
[403168161,1769236150954,-164.736033,0.00013498,2]
[403168162,1769236153155,-186.17199248,0.00013498,2]
[403168163,1769236155860,-252.42994815,0.00013498,2]
[403168164,1769236158082,-333.2158016,0.00013498,2]
[403168165,1769236161467,-302.19129105,0.00013498,2]
[403168166,1769236163746,-365.95735116,0.00013498,2]
[403168167,1769236165439,-154.69979071,0.00013498,2]
[403168168,1769236167499,-496.47191495,0.00013498,2]
[403168169,1769236168977,500.0,0.00013139,2]
[403168170,1769236169637,-245.70075882,0.00013498,2]
[403168171,1769236172921,-535.2409499,0.00013498,2]
[403168172,1769236177281,-158.50428498,0.000134,2]
[403168173,1769236179377,-224.99327147,0.00013387,2]
[403168174,1769236181600,-327.71327637,0.00013387,2]
[403168175,1769236183087,-289.46022887,0.00013387,2]
[403168176,1769236184733,-200.73553238,0.00013387,2]
[403168177,1769236184759,-12.2998432,0.00013398,2]
[403168178,1769236188093,-353.65680553,0.00013398,2]
[403168179,1769236190338,-134.04335127,0.00013398,2]
[403168180,1769236190362,-161.82836017,0.000134,2]
[403168181,1769236193333,-487.06693158,0.000134,2]
[403168182,1769236194961,-377.23293747,0.000134,2]
[403168183,1769236198096,-300.0,0.000134,2]
[403168184,1769236199575,-266.342047,0.000134,2]
[403168185,1769236206554,-170.40514115,0.00013398,2]
[403168186,1769236208184,-412.72971108,0.00013398,2]
[403168187,1769236211582,-196.31686961,0.00013398,2]
[403168188,1769236214948,-157.51314436,0.00013398,2]
[403168189,1769236217110,-253.8859156,0.00013398,2]
[403168190,1769236219227,-151.43953332,0.00013398,2]
[403168191,1769236221872,-203.84201728,0.00013398,2]
[403168192,1769236225283,-540.25332205,0.00013398,2]
[403168193,1769236227509,-248.34761799,0.00013398,2]
[403168194,1769236228553,846.47557648,0.00013299,2]
[403168195,1769236230216,-226.46511723,0.00013398,2]
[403168202,1769236232241,-676.92004919,0.00013398,2]
[403168203,1769236232255,-3759.15475901,0.00013398,2]
[403168204,1769236232364,-1059.18764589,0.00013398,2]
[403168205,1769236232480,-528.12118031,0.00013398,2]
[403168206,1769236232496,-1905.14323361,0.00013398,2]
[403168207,1769236232510,-1741.76684916,0.00013398,2]
[403168208,1769236232523,-3710.18510261,0.00013398,2]
[403168209,1769236232535,-429.03935746,0.00013398,2]
[403168210,1769236232548,-3373.61357432,0.00013398,2]
[403168213,1769236233050,-167953.14494812,0.00013398,2]
[403168214,1769236233083,-44036.40043201,0.00013398,2]
[403168215,1769236235604,-272.39166125,0.00013398,2]
[403168216,1769236237759,-219.58282256,0.00013398,2]
[403168222,1769236238545,-180548.34913907,0.00013398,2]
[403168225,1769236240516,-328.42331248,0.00013398,2]
[403168367,1769236243234,-720.72419265,0.00013398,2]
[403168374,1769236243639,-2473.07117054,0.00013398,2]
[403168375,1769236243655,-716.99396338,0.00013398,2]
[403168378,1769236245514,-172.53820591,0.00013398,2]
[403168379,1769236246320,-410.15501212,0.00013398,2]
[403168380,1769236246435,-5369.62265659,0.00013398,2]
[403168381,1769236246607,-1362.3108551,0.00013398,2]
[403168405,1769236247581,-1053.2764037,0.00013398,2]
[403168406,1769236249739,-269.12598303,0.00013398,2]
[403168407,1769236254249,-260.66825846,0.00013398,2]
[403168408,1769236257799,-182.4341895,0.00013398,2]
[403168409,1769236262997,-649.34143886,0.00013398,2]
[403168410,1769236267767,-183.95516542,0.00013398,2]
[403168411,1769236270239,-451.92574196,0.00013398,2]
[403168412,1769236272475,-254.30682026,0.00013398,2]
[403168413,1769236274589,-151.0,0.00013395,2]
[403168414,1769236274618,-287.61923921,0.00013398,2]
[403168415,1769236278705,-244.80789902,0.00013398,2]
[403168416,1769236282447,-300.0,0.00013398,2]
[403168417,1769236284537,-191.15444854,0.00013398,2]
[403168418,1769236287247,-193.27711953,0.00013398,2]
[403168419,1769236289473,-162.96462613,0.00013398,2]
[403168420,1769236292246,289.148,0.0001313,2]
[403168421,1769236292298,3736.44,0.0001313,2]
[403168422,1769236292340,-177.21446126,0.00013398,2]
[403168423,1769236293804,-167.47450196,0.00013398,2]
[403168424,1769236296456,-233.32957957,0.00013398,2]
[403168425,1769236299268,-226.62935403,0.00013398,2]
[403168426,1769236301746,-300.0,0.00013398,2]
[403168427,1769236304495,-170.30130963,0.00013398,2]
[403168428,1769236308597,-169.65782382,0.00013398,2]
[403168429,1769236311669,-222.33007091,0.00013398,2]
[403168430,1769236316297,-155.03186656,0.00013398,2]
[403168431,1769236317804,-155.03186656,0.00013398,2]
[403168432,1769236319425,189.93713,0.0001333,2]
[403168433,1769236321040,-321.55787541,0.00013398,2]
[403168434,1769236321588,300.0,0.00013397,2]
[403168435,1769236322781,-274.0,0.00013398,2]
[403168436,1769236324252,-221.84434696,0.00013398,2]
[403168437,1769236325815,-280.7290306,0.00013398,2]
[403168438,1769236328136,-258.69331905,0.00013398,2]
[403168439,1769236329813,-155.26686864,0.00013398,2]
[403168440,1769236331998,-255.19206791,0.00013398,2]
[403168441,1769236334053,-738.30969581,0.00013398,2]
[403168443,1769236337706,-288.38501587,0.00013398,2]
[403168444,1769236339218,-314.91192107,0.00013398,2]
[403168445,1769236340250,151.0,0.00013395,2]
[403168446,1769236340689,-152.55509174,0.00013398,2]
[403168447,1769236342730,-187.49372235,0.00013398,2]
[403168448,1769236344239,-732.12055295,0.00013398,2]
[403168449,1769236345798,-367.40314113,0.00013398,2]
[403168450,1769236347930,-182.59685887,0.00013398,2]
[403168451,1769236350290,-232.52215351,0.00013398,2]
[403168452,1769236353485,-407.689429,0.00013398,2]
[403168453,1769236355679,-240.68893856,0.00013398,2]
[403168454,1769236358001,-166.66,0.00013398,2]
[403168455,1769236360016,-244.04452484,0.00013398,2]
[403168458,1769236362061,-184.0,0.00013398,2]
[403168459,1769236365661,-165.57403326,0.00013398,2]
[403168460,1769236368426,-235.68056376,0.00013398,2]
[403168461,1769236369944,-200.0,0.00013398,2]
[403168462,1769236371471,-273.0,0.00013398,2]
[403168463,1769236374237,-423.79,0.00013398,2]
[403168464,1769236378349,-218.34596674,0.00013398,2]
[403168465,1769236378825,264.24,0.00010282,2]
[403168466,1769236379024,264.24,0.0001131,2]
[403168467,1769236379435,264.24,0.00012339,2]
[403168468,1769236379772,-264.24,0.00013367,2]
[403168469,1769236379799,-28.50515794,0.00013398,2]
[403168470,1769236383121,-150.0,0.00013397,2]
[403168471,1769236383148,-203.76731991,0.00013398,2]
[403168473,1769236386545,-228.01290191,0.00013397,2]
[403168474,1769236389915,-643.49259066,0.00013397,2]
[403168475,1769236389947,-71.98709809,0.00013397,2]
[403168476,1769236390031,-312.85545498,0.00013398,2]
[403168477,1769236393831,-359.86452808,0.00013398,2]
[403168478,1769236397176,-454.1716,0.00013398,2]
[403168479,1769236400079,-162.06320131,0.00013398,2]
[403168480,1769236400742,1200.0,0.00013397,2]
[403168481,1769236401868,500.0,0.00013397,2]
[403168482,1769236401952,500.0,0.00013397,2]
[403168483,1769236401998,500.0,0.00013397,2]
[403168484,1769236402042,500.0,0.00013397,2]
[403168485,1769236402087,500.0,0.00013397,2]
[403168486,1769236402130,500.0,0.00013397,2]
[403168487,1769236402170,500.0,0.00013397,2]
[403168488,1769236402211,500.0,0.00013397,2]
[403168489,1769236402255,500.0,0.00013397,2]
[403168490,1769236402306,500.0,0.00013397,2]
[403168491,1769236402345,500.0,0.00013397,2]
[403168492,1769236402384,500.0,0.00013397,2]
[403168493,1769236402423,500.0,0.00013397,2]
[403168494,1769236402461,-164.9802563,0.00013398,2]
[403168495,1769236402500,500.0,0.00013397,2]
[403168496,1769236402547,369.0506225,0.00013397,2]
[403168497,1769236406357,-130.9493775,0.00013397,2]
[403168498,1769236406383,-372.73867509,0.00013397,2]
[403168499,1769236408042,-104.98430055,0.00013397,2]
[403168500,1769236408068,-249.92526145,0.00013397,2]
[403168501,1769236409567,-248.68660594,0.00013397,2]
[403168502,1769236411737,-1.38813261,0.00013397,2]
[403168503,1769236411768,-169.6786471,0.00013397,2]
[403168504,1769236414045,-222.55181947,0.00013397,2]
[403168505,1769236416230,-107.76953343,0.00013397,2]
[403168506,1769236416262,-204.17416572,0.00013397,2]
[403168507,1769236418418,-295.82583428,0.00013397,2]
[403168508,1769236418770,-52.93300524,0.00013397,2]
[403168509,1769236421372,-447.06699476,0.00013397,2]
[403168510,1769236421403,-4.17416572,0.00013397,2]
[403168511,1769236423502,-200.0,0.00013397,2]
[403168512,1769236424945,-287.98105866,0.00013397,2]
[403168513,1769236427703,-7.84477562,0.00013397,2]
[403168514,1769236427731,-234.62416572,0.00013397,2]
[403168515,1769236444905,7718.15651129,0.00013298,2]
[403168516,1769236495970,843.5,0.00012589,2]
[403168517,1769236502993,1438.35348871,0.00013298,2]
[403168518,1769236503018,2764.74581863,0.00013298,2]
[403168519,1769236514711,2910.939257,0.00013327,2]
[403168520,1769236533766,230.42076506,0.00013296,2]
[403168521,1769236538999,-150.0,0.00013381,2]
[403168522,1769236539667,230.42076504,0.00013297,2]
[403168523,1769236545591,230.42076504,0.00013298,2]
[403168524,1769236564957,33.13614037,0.00013261,2]
[403168525,1769236564982,210.86385963,0.00013261,2]
[403168526,1769236573505,358.60012804,0.00013298,2]
[403168527,1769236573532,63.92295929,0.00013298,2]
[403168528,1769236597592,93.41704071,0.00012642,2]
[403168529,1769236597618,252.01901407,0.00012642,2]
[403168530,1769236597646,254.56394522,0.00012642,2]
[403168531,1769236676390,525.06,0.0001137,2]
[403168532,1769236676696,525.06,0.0001137,2]
[403168533,1769236677015,525.06,0.0001137,2]
[403168534,1769236677325,525.06,0.0001137,2]
[403168535,1769236702551,2143.51,0.00012571,2]
[403168536,1769236724582,242.66118906,0.00012976,2]
[403168537,1769236744689,150.0,0.00018,30]
[403168538,1769236746889,163.0,0.00013259,2]
[403168539,1769236753272,150.0,0.000155,10]
[403168540,1769236763189,311.82,0.00013335,2]
[403168541,1769236778597,311.81,0.00013335,2]
[403168542,1769236831223,7355.74055013,0.00013298,2]
[403168543,1769236849145,190.59928102,0.00013293,2]
[403168544,1769236895012,1023.577871,0.00013314,2]
[403168545,1769237015153,383.65677568,0.00013335,2]
[403168546,1769237015764,1046.43552217,0.00013298,2]
[403168547,1769237015789,2736.35385449,0.00013298,2]
[403168548,1769237124757,1158.71,0.00012539,2]
[403168549,1769237194277,284.92363005,0.00012971,2]
[403168550,1769237217501,5820.02251546,0.00013298,2]
[403168551,1769237217525,931.73354574,0.00013298,2]
[403168552,1769237241919,9068.27645426,0.00013288,2]
[403168553,1769237241952,10000.01,0.00013288,2]
[403168554,1769237241987,10000.01,0.00013288,2]
[403168555,1769237242021,10000.01,0.00013288,2]
[403168556,1769237242060,10000.01,0.00013288,2]
[403168557,1769237242095,10000.01,0.00013288,2]
[403168558,1769237242131,10000.01,0.00013288,2]
[403168559,1769237242165,10000.01,0.00013288,2]
[403168560,1769237242197,10000.01,0.00013288,2]
[403168561,1769237242232,10000.01,0.00013288,2]
[403168562,1769237261106,800.0,0.000128,4]
[403168563,1769237263193,1600.0,0.000129,4]
[403168564,1769237265372,2400.0,0.000149,5]
[403168565,1769237271828,860.4194399,0.00013281,2]
[403168566,1769237282358,150.0,0.00013287,2]
[403168567,1769237283199,300.0,0.00013287,2]
[403168568,1769237287982,641.63701,7.945e-05,2]
[403168569,1769237300326,1200.0,0.00013287,2]
[403168570,1769237303110,151.0,0.00013285,2]
[403168571,1769237313487,401.74385209,0.00013287,2]
[403168572,1769237313524,500.0,0.00013287,2]
[403168573,1769237313565,500.90708391,0.00013287,2]